fUSD/lending_fUSD_20240104
["ID","MTS","AMOUNT","RATE_DAILY","PERIOD"]
[310212392,1704402314043,741.66415567,0.00018318,2]
[310212393,1704402383932,155.24194201,0.00020606,2]
[310212394,1704402422188,25129.89464615,0.00022435,2]
[310212395,1704402432536,592.85200832,0.00021756,2]
[310212424,1704402473351,23900.0,0.00021853,2]
[310212425,1704402474174,621.62,0.00021918,2]
[310212426,1704402510450,351.36,0.00022,2]
[310212427,1704402513962,500.0,0.00022,2]
[310212428,1704402518512,176.8,0.00022403,2]
[310212429,1704402536546,194.93,0.0002194,2]
[310212487,1704402547274,1000.0,0.00021903,2]
[310212498,1704402564956,661.53,0.000218,2]
[310212581,1704402624306,1358.59,0.00021948,2]
[310212623,1704402631951,-370.082538,0.00022546,2]
[310212625,1704402631960,-455.90886671,0.00022546,2]
[310212627,1704402631973,-1061.75403741,0.00022546,2]
[310212632,1704402632008,-3095.26986482,0.00022546,2]
[310212634,1704402632019,-2312.95719687,0.00022546,2]
[310212635,1704402632029,-158.19187935,0.00022546,2]
[310212637,1704402632039,-2131.35827249,0.00022546,2]
[310212639,1704402632049,-1777.29115544,0.00022547,2]
[310212640,1704402632059,-155.0,0.00022547,2]
[310212641,1704402632069,-262.58894495,0.00022547,2]
[310212642,1704402632081,-2300.49008254,0.00022548,2]
[310212643,1704402632091,-522.36940647,0.00022548,2]
[310212644,1704402632101,-493.13627642,0.00022549,2]
[310212645,1704402632111,-155.9617372,0.00022549,2]
[310212646,1704402632121,-531.34224073,0.0002255,2]
[310212647,1704402632131,-695.70013712,0.0002255,2]
[310212648,1704402632141,-2772.31566911,0.0002255,2]
[310212649,1704402632151,-328.1656102,0.00022551,2]
[310212650,1704402632179,-1271.45237136,0.00022551,2]
[310212668,1704402632449,-1236.19436291,0.00022551,2]
[310212669,1704402632462,-103.05411628,0.00022551,2]
[310212670,1704402632472,-155.0,0.00022551,2]
[310212671,1704402632481,-155.0,0.00022551,2]
[310212672,1704402632491,-1848.60966923,0.00022551,2]
[310212673,1704402632500,-282.7663495,0.00022552,2]
[310212674,1704402632509,-1753.23429551,0.00022554,2]
[310212676,1704402632519,-132048.71238469,0.00022556,2]
[310212678,1704402632528,-169.95589275,0.0002256,2]
[310212680,1704402632538,-311.44461568,0.00022562,2]
[310212682,1704402632547,-168.75929348,0.00022562,2]
[310212684,1704402632557,-188.30052044,0.00022563,2]
[310212685,1704402632566,-530.51756616,0.00022563,2]
[310212686,1704402632576,-1549.87,0.00022563,2]
[310212687,1704402632586,-1002.91,0.0002266,2]
[310212688,1704402632597,-241.66712699,0.00022662,2]
[310212689,1704402632608,-192.47814891,0.00022664,2]
[310212690,1704402632617,-192.47814891,0.00022664,2]
[310212691,1704402632628,-192.47814891,0.00022664,2]
[310212692,1704402632637,-192.47814891,0.00022664,2]
[310212693,1704402632648,-192.47814891,0.00022664,2]
[310212694,1704402632657,-192.47814891,0.00022664,2]
[310212695,1704402632667,-192.47814891,0.00022664,2]
[310212696,1704402632680,-192.47814891,0.00022664,2]
[310212697,1704402632689,-192.47814891,0.00022664,2]
[310212698,1704402632698,-192.47814891,0.00022664,2]
[310212699,1704402632707,-192.47814891,0.00022664,2]
[310212700,1704402632716,-192.47814891,0.00022664,2]
[310212701,1704402632726,-192.47814891,0.00022664,2]
[310212702,1704402632736,-192.47814891,0.00022664,2]
[310212703,1704402632745,-192.47814891,0.00022664,2]
[310212704,1704402632755,-192.47814891,0.00022664,2]
[310212705,1704402632764,-192.47814891,0.00022664,2]
[310212706,1704402632774,-192.47814891,0.00022664,2]
[310212707,1704402632782,-192.47814891,0.00022664,2]
[310212708,1704402632792,-192.47814891,0.00022664,2]
[310212709,1704402632801,-192.47814891,0.00022664,2]
[310212710,1704402632811,-192.47814891,0.00022664,2]
[310212711,1704402632821,-192.47814891,0.00022664,2]
[310212712,1704402632831,-192.47814891,0.00022664,2]
[310212713,1704402632840,-192.47814891,0.00022664,2]
[310212714,1704402632849,-192.47814891,0.00022664,2]
[310212715,1704402632859,-192.47814891,0.00022664,2]
[310212716,1704402632867,-192.47814891,0.00022664,2]
[310212717,1704402632876,-192.47814891,0.00022664,2]
[310212718,1704402632886,-192.47814891,0.00022664,2]
[310212719,1704402632895,-192.47814891,0.00022664,2]
[310212720,1704402632905,-192.47814891,0.00022664,2]
[310212721,1704402632915,-192.47814891,0.00022664,2]
[310212722,1704402632927,-192.47814891,0.00022664,2]
[310212723,1704402632936,-192.47814891,0.00022664,2]
[310212724,1704402632945,-168243.0,0.00022671,2]
[310212725,1704402632955,-169.95589274,0.00022679,2]
[310212726,1704402632964,-661.53,0.00022778,2]
[310212727,1704402632974,-169.95589274,0.00022797,2]
[310212728,1704402632983,-162.449713,0.000228,2]
[310212729,1704402632992,-162.44971296,0.00022817,2]
[310212730,1704402633001,-162.44971296,0.00022833,2]
[310212731,1704402633010,-162.44971296,0.0002285,2]
[310212732,1704402633019,-162.44971296,0.00022867,2]
[310212733,1704402633029,-162.44971296,0.00022883,2]
[310212734,1704402633038,-249.9279529,0.00022889,2]
[310212735,1704402633048,-12945.77510568,0.00022897,2]
[310212736,1704402633058,-155.0,0.00022897,2]
[310212737,1704402633067,-4847.42967548,0.00022897,2]
[310212738,1704402633076,-245.81988917,0.00022897,2]
[310212739,1704402633085,-155.47575455,0.00022897,2]
[310212740,1704402633095,-375.58716419,0.00022897,2]
[310212741,1704402633105,-2228.07086495,0.00022897,2]
[310212742,1704402633114,-309.02030832,0.00022897,2]
[310212743,1704402633123,-220.31430902,0.00022897,2]
[310212744,1704402633133,-214.24001035,0.00022897,2]
[310212745,1704402633142,-429.93039973,0.00022897,2]
[310212746,1704402633151,-191.51289122,0.00022897,2]
[310212747,1704402633161,-898.26265685,0.00022897,2]
[310212748,1704402633170,-155.0,0.00022897,2]
[310212749,1704402633181,-2684.37057527,0.00022897,2]
[310212750,1704402633191,-234.39530691,0.00022897,2]
[310212751,1704402633200,-163.35829217,0.00022897,2]
[310212752,1704402633209,-172.99308414,0.00022897,2]
[310212753,1704402633219,-269.99485082,0.00022897,2]
[310212754,1704402633229,-155.0,0.00022897,2]
[310212755,1704402633240,-1001.88283437,0.00022897,2]
[310212756,1704402633250,-2427.09328046,0.00022897,2]
[310212757,1704402633259,-157.11544536,0.00022897,2]
[310212758,1704402633269,-547.77244431,0.00022897,2]
[310212759,1704402633278,-3700.215633,0.00022897,2]
[310212760,1704402633288,-3315.35983299,0.00022897,2]
[310212761,1704402633297,-155.0,0.00022897,2]
[310212762,1704402633307,-2422.75570783,0.00022897,2]
[310212763,1704402633316,-155.49487715,0.00022897,2]
[310212764,1704402633325,-805.64857158,0.00022897,2]
[310212765,1704402633335,-1762.36251206,0.00022897,2]
[310212766,1704402633346,-155.32242594,0.00022897,2]
[310212767,1704402633356,-155.0,0.00022897,2]
[310212768,1704402633365,-155.0,0.00022897,2]
[310212769,1704402633374,-407.29221327,0.00022897,2]
[310212770,1704402633386,-1328.58401684,0.00022897,2]
[310212771,1704402633398,-433.62680946,0.00022897,2]
[310212772,1704402633408,-3239.13963039,0.00022897,2]
[310212773,1704402633418,-155.4249365,0.00022897,2]
[310212774,1704402633430,-5519.37651331,0.00022897,2]
[310212775,1704402633439,-244.08411725,0.00022897,2]
[310212776,1704402633449,-155.0,0.00022897,2]
[310212777,1704402633459,-1131.19977349,0.00022897,2]
[310212778,1704402633469,-228.18890628,0.00022897,2]
[310212779,1704402633479,-155.40803254,0.00022897,2]
[310212780,1704402633490,-155.46774164,0.00022897,2]
[310212781,1704402633500,-259.08563159,0.00022897,2]
[310212782,1704402633510,-155.85873922,0.00022897,2]
[310212783,1704402633520,-254.96667626,0.00022897,2]
[310212784,1704402633529,-155.6008495,0.00022897,2]
[310212785,1704402633538,-286.7432827,0.00022897,2]
[310212786,1704402633547,-407.96601908,0.00022897,2]
[310212787,1704402633558,-217.02178002,0.00022897,2]
[310212788,1704402633568,-278.13734884,0.00022897,2]
[310212789,1704402633578,-1041.19932575,0.00022897,2]
[310212790,1704402633588,-576.00930164,0.00022897,2]
[310212791,1704402633597,-578.96945124,0.00022897,2]
[310212792,1704402633606,-164.82714695,0.00022897,2]
[310212793,1704402633615,-402.08462827,0.00022897,2]
[310212794,1704402633625,-752.76048375,0.00022897,2]
[310212795,1704402633635,-8632.20142762,0.00022897,2]
[310212796,1704402633644,-159.98061969,0.00022897,2]
[310212797,1704402633654,-2983.10898853,0.00022897,2]
[310212798,1704402633664,-1000.0,0.00022898,2]
[310212799,1704402633675,-520.05043342,0.00022898,2]
[310212800,1704402633685,-2183.01599511,0.00022898,2]
[310212801,1704402633694,-150.0,0.00022898,2]
[310212802,1704402633703,-593237.66142373,0.00022899,2]
[310212803,1704402633713,-206.46830907,0.000229,2]
[310212804,1704402633723,-739.12230164,0.000229,2]
[310212805,1704402633734,-206.46830907,0.000229,2]
[310212806,1704402633743,-17696.51959548,0.000229,2]
[310212807,1704402633753,-157.04290027,0.000229,2]
[310212808,1704402633763,-25177.57,0.000229,2]
[310212809,1704402633772,-9208.50091281,0.000229,2]
[310212810,1704402633782,-647.76524852,0.000229,2]
[310212811,1704402633792,-2999.78836863,0.000229,2]
[310212812,1704402633803,-353.5718699,0.000229,2]
[310212813,1704402633813,-9730.41,0.000229,2]
[310212814,1704402633824,-162.44971296,0.000229,2]
[310212815,1704402633833,-175.02319389,0.000229,2]
[310212816,1704402633843,-575.41745965,0.000229,2]
[310212817,1704402633852,-6270.0813041,0.000229,2]
[310212818,1704402633862,-137255.64,0.000229,2]
[310212819,1704402633871,-40682.66704673,0.000229,2]
[310212820,1704402633880,-807.46700827,0.000229,2]
[310212821,1704402633889,-249.9279529,0.0002299,2]
[310212822,1704402633899,-249.9279529,0.0002299,2]
[310212823,1704402633908,-229.79462586,0.00022999,2]
[310212824,1704402633917,-229.09559365,0.00022999,2]
[310212825,1704402633929,-368.04968991,0.00022999,2]
[310212826,1704402633938,-150.0,0.00022999,2]
[310212827,1704402633947,-150.0,0.00022999,2]
[310212828,1704402633956,-150.0,0.00022999,2]
[310212829,1704402633965,-150.0,0.00022999,2]
[310212830,1704402633974,-150.0,0.00022999,2]
[310212831,1704402633983,-150.0,0.00022999,2]
[310212832,1704402633992,-150.0,0.00022999,2]
[310212833,1704402634002,-150.0,0.00022999,2]
[310212834,1704402634012,-688909.92410347,0.00023,2]
[310212835,1704402634407,-832.79886812,0.00023,2]
[310212836,1704402634438,-303.05773208,0.00023,2]
[310212837,1704402634450,-1775.04369765,0.00023,2]
[310212838,1704402634461,-485.6199975,0.00023,2]
[310212839,1704402634474,-294.6387564,0.00023,2]
[310212840,1704402634485,-5315.328864,0.00023,2]
[310212847,1704402637867,-3922.94809082,0.00022545,2]
[310212848,1704402637877,-155.0,0.00022545,2]
[310212850,1704402637886,-282.7663495,0.00022545,2]
[310212851,1704402637895,-1283.54848333,0.00023,2]
[310212853,1704402637907,-368.49053833,0.00023,2]
[310212854,1704402637918,-550.69454064,0.00023,2]
[310212855,1704402637931,-467.12223999,0.00023,2]
[310212856,1704402637942,-1726.218,0.00023,2]
[310212857,1704402637953,-2672.34951342,0.00023,2]
[310212858,1704402637989,-10552.55108076,0.00023,2]
[310212859,1704402638001,-129983.14313604,0.00023,2]
[310212860,1704402638012,-2728.82108665,0.00023,2]
[310212861,1704402638024,-803.82,0.00023,2]
[310212862,1704402638137,-902.09280879,0.00023,2]
[310212863,1704402638149,-1695.38450848,0.00023,2]
[310212864,1704402638160,-3878.5311,0.00023,2]
[310212865,1704402638173,-6631.5,0.00023,2]
[310212866,1704402638191,-91187.21470562,0.00023,2]
[310212867,1704402638203,-452.64,0.00023,2]
[310212868,1704402638215,-2007.56230335,0.00023,2]
[310212869,1704402638227,-364.13822102,0.00023,2]
[310212870,1704402638238,-476.01994707,0.00023,2]
[310212871,1704402638249,-5184.82578303,0.00023,2]
[310212872,1704402638260,-2021.62431357,0.00023,2]
[310212873,1704402638303,-691.20961858,0.00023,2]
[310212874,1704402638315,-1648.79103856,0.00023,2]
[310212875,1704402638327,-1558.81135487,0.00023,2]
[310212876,1704402638338,-946.39860913,0.00023,2]
[310212877,1704402638350,-44200.0,0.00023,2]
[310212878,1704402638362,-421.78588728,0.00023,2]
[310212880,1704402638373,-459.19539029,0.00023,2]
[310212883,1704402638385,-8112205.61662609,0.00023,2]
[310212885,1704402638395,-1770918.97610065,0.00023,2]
[310212887,1704402638404,-206.46830907,0.00023,2]
[310212888,1704402638414,-343.47631702,0.000231,2]
[310212890,1704402638423,-166.28,0.00023276,2]
[310212892,1704402638437,-343.47631702,0.000234,2]
[310212894,1704402638446,-155.2,0.00023691,2]
[310212896,1704402638456,-343.47631702,0.000237,2]
[310212898,1704402638465,-661.53,0.00023757,2]
[310212901,1704402638475,-155.2,0.00023829,2]
[310212903,1704402638484,-155.2,0.00023966,2]
[310212905,1704402638493,-343.47631702,0.00024,2]
[310212907,1704402638503,-155.2,0.00024103,2]
[310212908,1704402638512,-155.2,0.0002424,2]
[310212911,1704402638522,-343.47631702,0.000243,2]
[310212912,1704402638531,-516.06,0.00024362,2]
[310212915,1704402638542,-155.2,0.00024377,2]
[310212917,1704402638551,-155.2,0.00024514,2]
[310212919,1704402638561,-343.47631702,0.000246,2]
[310212921,1704402638570,-1000.0,0.00024641,2]
[310212922,1704402638582,-155.2,0.00024652,2]
[310212924,1704402638591,-661.53,0.00024735,2]
[310212926,1704402638601,-155.2,0.00024789,2]
[310212928,1704402638610,-343.47631702,0.000249,2]
[310212930,1704402638619,-155.2,0.00024926,2]
[310212932,1704402638629,-430.0,0.00025,2]
[310212934,1704402638639,-210.1621425,0.00025,2]
[310212936,1704402638649,-661.53,0.00025714,2]
[310212938,1704402638658,-516.06,0.00026626,2]
[310212940,1704402638667,-250.0,0.00026654,2]
[310212942,1704402638676,-661.53,0.00026692,2]
[310212944,1704402638686,-250.0,0.00027,3]
[310212946,1704402638695,-1000.0,0.00027379,2]
[310212948,1704402638704,-200.0,0.00027397,5]
[310212951,1704402638714,-499.36,0.00027397,2]
[310212952,1704402638723,-499.36,0.00027556,2]
[310212955,1704402638733,-661.53,0.00027671,2]
[310212956,1704402638742,-499.36,0.00027714,2]
[310212958,1704402638752,-499.36,0.00027872,2]
[310212960,1704402638761,-200.0,0.00027945,5]
[310212962,1704402638771,-162.18,0.00027945,2]
[310212964,1704402638780,-2077.75,0.00027945,2]
[310212966,1704402638790,-499.36,0.0002803,2]
[310212968,1704402638799,-499.36,0.00028189,2]
[310212970,1704402638808,-499.36,0.00028347,2]
[310212972,1704402638818,-200.0,0.00028493,5]
[310212974,1704402638827,-499.36,0.00028505,2]
[310212977,1704402638836,-661.53,0.00028649,2]
[310212979,1704402638846,-499.36,0.00028664,2]
[310212981,1704402638856,-499.36,0.00028822,2]
[310212983,1704402638865,-516.06,0.0002889,2]
[310212985,1704402638874,-1293.33248192,0.000289,4]
[310212986,1704402638883,-1782.17067083,0.00029,2]
[310212989,1704402638893,-300.0,0.00029,3]
[310212990,1704402638902,-200.0,0.00029041,5]
[310212992,1704402638911,-247.51821648,0.00029589,5]
[310212995,1704402638921,-1293.33248192,0.00029614,4]
[310212997,1704402638930,-661.53,0.00029628,2]
[310212999,1704402638939,-150.0,0.00029999,2]
[310213000,1704402638948,-307809.14220797,0.0003,4]
[310213003,1704402638957,-9604.33331486,0.0003,2]
[310213005,1704402638966,-768.50175382,0.0003,4]
[310213006,1704402638975,-459.05485699,0.0003,4]
[310213008,1704402638984,-2547.59067157,0.0003,4]
[310213010,1704402638993,-1000.0,0.0003,2]
[310213012,1704402639003,-1000.0,0.00030117,2]
[310213014,1704402639012,-10000.0,0.00030137,2]
[310213016,1704402639020,-7288.21,0.00030137,2]
[310213018,1704402639030,-153.84,0.00030137,2]
[310213020,1704402639038,-1293.33248192,0.00030329,5]
[310213023,1704402639048,-661.53,0.00030606,2]
[310213025,1704402639059,-1000.0,0.0003075,2]
[310213027,1704402639068,-184.73,0.00030851,2]
[310213029,1704402639077,-155.44,0.00030851,2]
[310213031,1704402639086,-257.1,0.00030851,2]
[310213033,1704402639097,-180.89,0.00030851,2]
[310213035,1704402639106,-2000.0,0.00030851,2]
[310213037,1704402639115,-58643.25750197,0.000309,2]
[310213039,1704402639124,-152.40859416,0.00030997,2]
[310213041,1704402639132,-350000.58005769,0.00031,2]
[310213043,1704402639141,-350.0,0.00031,3]
[310213045,1704402639150,-250.66380572,0.00031,2]
[310213047,1704402639159,-250.66380572,0.00031,2]
[310213049,1704402639167,-1293.33248192,0.00031043,5]
[310213051,1704402639176,-153.84,0.0003105,2]
[310213053,1704402639187,-155.44,0.00031131,2]
[310213055,1704402639196,-516.06,0.00031154,2]
[310213057,1704402639205,-163.66,0.00031257,2]
[310213059,1704402639214,-155.44,0.00031412,2]
[310213061,1704402639223,-1000.0,0.000315,2]
[310213063,1704402639232,-199.44,0.00031507,2]
[310213064,1704402639241,-661.53,0.00031585,2]
[310213066,1704402639251,-155.44,0.00031692,2]
[310213069,1704402639260,-1293.33248192,0.00031757,5]
[310213070,1704402639269,-17494.0,0.000318,2]
[310213072,1704402639278,-1765.0,0.000318,2]
[310213074,1704402639287,-53180.1494802,0.000318,2]
[310213076,1704402639295,-180.89,0.00031879,2]
[310213078,1704402639305,-151.69832518,0.000319,2]
[310213080,1704402639314,-151.69832518,0.000319,2]
[310213083,1704402639323,-151.69832518,0.000319,2]
[310213084,1704402639332,-151.69832518,0.000319,2]
[310213087,1704402639341,-153.84,0.00031963,2]
[310213088,1704402639350,-1862.05193422,0.00031969,2]
[310213090,1704402639359,-155.44,0.00031972,2]
[310213093,1704402639369,-1862.05193422,0.00031984,2]
[310213094,1704402639378,-1862.05193422,0.00031986,2]
[310213096,1704402639392,-1862.05193422,0.00031986,2]
[310213098,1704402639401,-50000.0,0.00032,2]
[310213100,1704402639410,-4466.00193061,0.00032,4]
[310213102,1704402639419,-150.0,0.00032,2]
[310213104,1704402639431,-163.66,0.00032097,2]
[310213106,1704402639441,-1000.0,0.0003225,2]
[310213108,1704402639450,-155.44,0.00032253,2]
[310213110,1704402639460,-258.16925494,0.000323,4]
[310213112,1704402639472,-1293.33248192,0.00032471,6]
[310213114,1704402639481,-155.44,0.00032533,2]
[310213116,1704402639491,-661.53,0.00032563,2]
[310213118,1704402639500,-24799.8627,0.00032676,2]
[310213120,1704402639510,-42561.2054,0.00032676,2]
[310213122,1704402639519,-243208.1746,0.00032676,2]
[310213125,1704402639529,-151.0,0.00032676,7]
[310213127,1704402639539,-86007.83952616,0.000327,2]
[310213129,1704402639549,-5000.0,0.00032776,2]
[310213131,1704402639558,-208.0,0.00032776,2]
[310213133,1704402639567,-7500.0,0.00032776,2]
[310213134,1704402639577,-155.44,0.00032814,2]
[310213137,1704402639586,-1102.8891398,0.00032855,14]
[310213139,1704402639595,-1000.0,0.00032855,2]
[310213141,1704402639605,-150.0,0.00032875,2]
[310213143,1704402639614,-178.90019114,0.00032876,2]
[310213145,1704402639623,-622.90356237,0.00032876,2]
[310213147,1704402639633,-500.0,0.00032876,2]
[310213149,1704402639642,-596.59301123,0.00032876,2]
[310213151,1704402639651,-500.0,0.00032876,2]
[310213153,1704402639661,-509.62881885,0.00032876,2]
[310213155,1704402639670,-500.0,0.00032876,2]
[310213157,1704402639681,-307.54505398,0.00032876,2]
[310213159,1704402639690,-500.0,0.00032876,2]
[310213161,1704402639699,-500.0,0.00032876,2]
[310213163,1704402639708,-500.0,0.00032876,2]
[310213166,1704402639718,-500.0,0.00032876,2]
[310213169,1704402639727,-399.02328017,0.00032876,2]
[310213171,1704402639739,-500.0,0.00032876,2]
[310213174,1704402639749,-500.0,0.00032876,2]
[310213176,1704402639758,-500.0,0.00032876,2]
[310213178,1704402639768,-500.0,0.00032876,2]
[310213180,1704402639777,-500.0,0.00032876,2]
[310213182,1704402639787,-500.0,0.00032876,2]
[310213184,1704402639796,-500.0,0.00032876,2]
[310213185,1704402639806,-151.70969563,0.00032876,2]
[310213186,1704402639815,-500.0,0.00032876,2]
[310213187,1704402639825,-500.0,0.00032876,2]
[310213188,1704402639834,-500.0,0.00032876,2]
[310213189,1704402639843,-500.0,0.00032876,2]
[310213190,1704402639852,-500.0,0.00032876,2]
[310213191,1704402639862,-500.0,0.00032876,2]
[310213192,1704402639871,-500.0,0.00032876,2]
[310213193,1704402639881,-530.23900063,0.00032876,2]
[310213194,1704402639890,-500.0,0.00032876,2]
[310213196,1704402639900,-500.0,0.00032876,2]
[310213198,1704402639912,-500.0,0.00032876,2]
[310213200,1704402639922,-160.19411252,0.00032876,2]
[310213202,1704402639932,-500.0,0.00032876,2]
[310213204,1704402639941,-500.0,0.00032876,2]
[310213206,1704402639951,-500.0,0.00032876,2]
[310213208,1704402639962,-500.0,0.00032876,2]
[310213210,1704402639971,-1000.0,0.00032876,2]
[310213212,1704402639980,-500.0,0.00032876,2]
[310213214,1704402639990,-500.0,0.00032876,2]
[310213216,1704402639999,-500.0,0.00032876,2]
[310213218,1704402640008,-500.0,0.00032876,2]
[310213220,1704402640018,-500.0,0.00032876,2]
[310213222,1704402640027,-500.0,0.00032876,2]
[310213224,1704402640036,-500.0,0.00032876,2]
[310213226,1704402640046,-500.0,0.00032876,2]
[310213228,1704402640055,-500.0,0.00032876,2]
[310213230,1704402640064,-500.0,0.00032876,2]
[310213232,1704402640074,-500.0,0.00032876,2]
[310213234,1704402640084,-500.0,0.00032876,2]
[310213237,1704402640093,-235.24858489,0.00032876,2]
[310213239,1704402640103,-500.0,0.00032876,2]
[310213241,1704402640112,-500.0,0.00032876,2]
[310213243,1704402640122,-500.0,0.00032876,2]
[310213245,1704402640131,-500.0,0.00032876,2]
[310213247,1704402640140,-500.0,0.00032876,2]
[310213249,1704402640149,-500.0,0.00032876,2]
[310213251,1704402640159,-500.0,0.00032876,2]
[310213253,1704402640169,-500.0,0.00032876,2]
[310213255,1704402640183,-500.0,0.00032876,2]
[310213257,1704402640192,-501.88752401,0.00032876,2]
[310213259,1704402640202,-500.0,0.00032876,2]
[310213261,1704402640211,-522.72319098,0.00032876,2]
[310213263,1704402640221,-500.0,0.00032876,2]
[310213265,1704402640230,-500.0,0.00032876,2]
[310213267,1704402640239,-500.0,0.00032876,2]
[310213269,1704402640249,-500.0,0.00032876,2]
[310213271,1704402640259,-500.0,0.00032876,2]
[310213273,1704402640269,-500.0,0.00032876,2]
[310213275,1704402640279,-500.0,0.00032876,2]
[310213277,1704402640288,-500.0,0.00032876,2]
[310213279,1704402640298,-500.0,0.00032876,2]
[310213281,1704402640308,-500.0,0.00032876,2]
[310213283,1704402640317,-554.75,0.00032876,2]
[310213286,1704402640327,-500.0,0.00032876,2]
[310213288,1704402640336,-500.0,0.00032876,2]
[310213290,1704402640345,-500.0,0.00032876,2]
[310213292,1704402640355,-500.0,0.00032876,2]
[310213294,1704402640365,-500.0,0.00032876,2]
[310213296,1704402640375,-500.0,0.00032876,2]
[310213298,1704402640385,-500.0,0.00032876,2]
[310213301,1704402640395,-500.0,0.00032876,2]
[310213304,1704402640405,-500.0,0.00032876,2]
[310213306,1704402640415,-500.0,0.00032876,2]
[310213308,1704402640424,-500.0,0.00032876,2]
[310213310,1704402640436,-500.0,0.00032876,2]
[310213312,1704402640445,-500.0,0.00032876,2]
[310213314,1704402640455,-500.0,0.00032876,2]
[310213316,1704402640465,-500.0,0.00032876,2]
[310213318,1704402640474,-500.0,0.00032876,2]
[310213320,1704402640486,-500.0,0.00032876,2]
[310213322,1704402640496,-302.67100743,0.00032876,2]
[310213324,1704402640505,-500.0,0.00032876,2]
[310213326,1704402640515,-500.0,0.00032876,2]
[310213328,1704402640524,-500.0,0.00032876,2]
[310213330,1704402640534,-500.0,0.00032876,2]
[310213332,1704402640544,-500.0,0.00032876,2]
[310213334,1704402640553,-500.0,0.00032876,2]
[310213336,1704402640563,-500.0,0.00032876,2]
[310213339,1704402640575,-500.0,0.00032876,2]
[310213341,1704402640584,-500.0,0.00032876,2]
[310213343,1704402640594,-500.0,0.00032876,2]
[310213345,1704402640603,-500.0,0.00032876,2]
[310213347,1704402640612,-500.02776259,0.00032876,2]
[310213349,1704402640622,-500.0,0.00032876,2]
[310213351,1704402640631,-500.0,0.00032876,2]
[310213353,1704402640641,-500.0,0.00032876,2]
[310213355,1704402640650,-500.0,0.00032876,2]
[310213357,1704402640660,-500.0,0.00032876,2]
[310213359,1704402640669,-535.25676224,0.00032876,2]
[310213361,1704402640678,-500.0,0.00032876,2]
[310213363,1704402640690,-500.0,0.00032876,2]
[310213365,1704402640699,-500.0,0.00032876,2]
[310213367,1704402640708,-525.34249906,0.00032876,2]
[310213369,1704402640717,-500.0,0.00032876,2]
[310213371,1704402640726,-500.0,0.00032876,2]
[310213373,1704402640736,-500.0,0.00032876,2]
[310213375,1704402640747,-500.0,0.00032876,2]
[310213377,1704402640757,-500.0,0.00032876,2]
[310213379,1704402640767,-500.0,0.00032876,2]
[310213381,1704402640777,-500.0,0.00032876,2]
[310213383,1704402640786,-500.0,0.00032876,2]
[310213385,1704402640797,-500.0,0.00032876,2]
[310213387,1704402640806,-500.0,0.00032876,2]
[310213389,1704402640815,-500.0,0.00032876,2]
[310213391,1704402640824,-500.0,0.00032876,2]
[310213393,1704402640834,-514.17337724,0.00032876,2]
[310213395,1704402640843,-500.0,0.00032876,2]
[310213397,1704402640853,-500.0,0.00032876,2]
[310213399,1704402640862,-500.0,0.00032876,2]
[310213401,1704402640872,-500.0,0.00032876,2]
[310213403,1704402640882,-500.0,0.00032876,2]
[310213405,1704402640891,-500.0,0.00032876,2]
[310213407,1704402640901,-500.0,0.00032876,2]
[310213409,1704402640911,-500.0,0.00032876,2]
[310213411,1704402640920,-500.0,0.00032876,2]
[310213413,1704402640930,-500.0,0.00032876,2]
[310213415,1704402640940,-324.23275866,0.00032876,2]
[310213417,1704402640950,-500.0,0.00032876,2]